[Event "SPICE Cup Open 2018"]
[Site "St. Louis"]
[Date "2018.10.25"]
[Round "4"]
[White "Liang, Awonder"]
[Black "Cordova, Emilio"]
[Result "1-0"]
[ECO "B31"]
[WhiteElo "2572"]
[BlackElo "2609"]
[Annotator "RC"]
[PlyCount "103"]
[EventDate "2018.10.22"]
[EventType "swiss"]
[EventCountry "USA"]
[SourceTitle "playchess.com"]
[Source "ChessBase"]
[SourceQuality "1"]
[TimeControl "5400+30"]

1. e4 c5 2. Nf3 Nc6 3. Bb5 g6 4. Bxc6 dxc6 5. d3 Bg7 6. Nc3 Nf6 {[%emt 0:10:04]} 7. O-O Nd7 8. Be3 {[%emt 0:05:19]} b6 {[%emt 0:03:07]} 9. a4 {[%emt 0:05:55]} a5 10. Qd2 {[%emt 0:05:12]} h6 {[%emt 0:03:25]} 11. h3 {[%emt 0:01:31]} e5 {[%emt 0:03:21]} 12. Nh2 {[%emt 0:00:17]} Nf8 {[%emt 0:00:45]} 13. f4 exf4 {[%emt 0:00:10]} 14. Rxf4 {[%emt 0:01:43]} Ne6 {[%emt 0:00:27]} 15. Rf2 {[%emt 0:00:10]} Nd4 {[%emt 0:02:39]} 16. Raf1 {[%emt 0:04:01]} Ra7 {[%emt 0:00:21]} 17. Ne2 {[%emt 0:07:23]} Nxe2+ {[%emt 0:02:44]} 18. Rxe2 {[%emt 0:03:34]} Be6 19. b3 {[%emt 0:05:29]} Rd7 {[%emt 0:06:48]} 20. Kh1 {[%emt 0:12:10]} Qh4 {[%emt 0:10:24]} 21. Rf4 {[%emt 0:02:20]} Qe7 {[%emt 0:07:21]} 22. Ref2 {[%emt 0:05:26]} Kd8 23. Re2 {[%emt 0:00:30]} Kc8 {[%emt 0:01:07]} 24. Rf1 {[%emt 0:01:40]} Qd8 {[%emt 0:05:13]} 25. Qe1 {[%emt 0:00:30]} g5 {[%emt 0:00:30]} 26. Qg3 {[%emt 0:00:30]} Bf8 {[%emt 0:00:30]} 27. Ng4 {[%emt 0:00:30]} Bd6 {[%emt 0:00:30]} 28. e5 {[%emt 0:00:30]} Bc7 {[%emt 0:00:30]} 29. Nf6 {[%emt 0:00:30]} Re7 {[%emt 0:00:30]} 30. Bg1 {[%emt 0:00:30]} Kb7 {[%emt 0:00:30]} 31. Rfe1 {[%emt 0:00:30]} Qf8 {[%emt 0:00:30]} 32. Ne4 {[%emt 0:00:30]} Rd7 {[%emt 0:00:30]} 33. Nf6 {[%emt 0:00:30]} Re7 {[%emt 0:00:30]} 34. c3 {[%emt 0:00:30]} Qg7 {[%emt 0:00:30]} 35. Rb1 {[%emt 0:00:30]} Bc8 {[%emt 0:00:30]} 36. d4 {[%emt 0:00:30]} cxd4 {[%emt 0:00:30]} 37. cxd4 {[%emt 0:00:30]} Qxf6 {[%emt 0:00:30]} 38. exf6 {[%emt 0:00:30]} Rxe2 {[%emt 0:00:30]} 39. Qd3 {[%emt 0:00:30]} Re6 {[%emt 0:00:30]} 40. b4 {[%emt 0:00:30]} axb4 {[%emt 0:00:30]} 41. Rxb4 {[%emt 0:00:30]} Rd8 {[%emt 0:00:30]} 42. d5 {[%emt 0:00:30]} Rxd5 {[%emt 0:00:30]} 43. Qb3 {[%emt 0:00:30]} Ka8 {[%emt 0:00:30]} 44. Rxb6 {[%emt 0:00:30]} Bxb6 {[%emt 0:00:30]} 45. Qxb6 {[%emt 0:00:30]} c5 {[%emt 0:00:30]} 46. Qc7 {[%emt 0:00:30]} Bb7 {[%emt 0:00:30]} 47. Qxf7 {[%emt 0:00:30]} Re2 {[%emt 0:00:30]} 48. Qf8+ {[%emt 0:00:30]} Ka7 {[%emt 0:00:30]} 49. f7 {[%emt 0:00:30]} Rc2 {[%emt 0:00:30]} 50. Qe7 {[%emt 0:00:30]} Rf5 {[%emt 0:00:30]} 51. f8=Q {[%emt 0:00:30]} Rxf8 {[%emt 0:00:30]} 52. Bxc5+ {[%emt 0:00:30]} 1-0